[Event "Early-Titled-Tuesday-Blitz-October-10-2023"]
[Site "Chess.com"]
[Date "2023.10.10"]
[Round "6"]
[White "JAN2404"]
[Black "GAusal"]
[Result "1/2-1/2"]
[WhiteElo "2080"]
[BlackElo "2277"]
[TimeControl "180+1"]
[EndTime "9:06:00 PDT"]
[Termination "Game drawn - insufficient material"]

1. e4 {[%clk 0:02:58.7]} 1... c5 {[%clk 0:02:58.8]} 2. Nf3 {[%clk 0:02:55.8]}
2... e6 {[%clk 0:02:58.9]} 3. Nc3 {[%clk 0:02:48.9]} 3... Nc6 {[%clk 0:02:54]}
4. Bc4 {[%clk 0:02:30.4]} 4... a6 {[%clk 0:02:50.7]} 5. a4 {[%clk 0:02:12.7]}
5... d6 {[%clk 0:02:44.2]} 6. O-O {[%clk 0:02:10.1]} 6... g6 {[%clk 0:02:42.6]}
7. d3 {[%clk 0:02:08.7]} 7... Bg7 {[%clk 0:02:42.7]} 8. Re1 {[%clk 0:02:06.3]}
8... Nge7 {[%clk 0:02:34.3]} 9. h3 {[%clk 0:01:59.9]} 9... O-O {[%clk
0:02:32.9]} 10. Be3 {[%clk 0:01:58]} 10... b6 {[%clk 0:02:31.3]} 11. Qd2 {[%clk
0:01:57.4]} 11... Ne5 {[%clk 0:02:29.8]} 12. Nxe5 {[%clk 0:01:50.4]} 12... dxe5
{[%clk 0:02:29.3]} 13. Ne2 {[%clk 0:01:38.8]} 13... Bb7 {[%clk 0:02:28.1]} 14.
Ng3 {[%clk 0:01:35.5]} 14... h5 {[%clk 0:02:25.5]} 15. Bh6 {[%clk 0:01:30.7]}
15... Nc6 {[%clk 0:02:21]} 16. c3 {[%clk 0:01:23.6]} 16... h4 {[%clk 0:02:15.7]}
17. Bg5 {[%clk 0:01:19]} 17... Qd7 {[%clk 0:02:11.1]} 18. Bxh4 {[%clk
0:01:17.9]} 18... Na5 {[%clk 0:02:07.4]} 19. Ba2 {[%clk 0:01:11.5]} 19... f6
{[%clk 0:02:01.7]} 20. Rad1 {[%clk 0:01:01.6]} 20... Kf7 {[%clk 0:01:57.5]} 21.
f4 {[%clk 0:00:52.9]} 21... c4 {[%clk 0:01:49.7]} 22. fxe5 {[%clk 0:00:48.9]}
22... Nb3 {[%clk 0:01:43.6]} 23. Qf2 {[%clk 0:00:33.6]} 23... Qxa4 {[%clk
0:01:30.3]} 24. Bxb3 {[%clk 0:00:19.3]} 24... Qxb3 {[%clk 0:01:28.7]} 25. Bxf6
{[%clk 0:00:19.7]} 25... Kg8 {[%clk 0:01:23.2]} 26. dxc4 {[%clk 0:00:18.5]}
26... Qxc4 {[%clk 0:01:19.4]} 27. Rd7 {[%clk 0:00:19]} 27... Bxf6 {[%clk
0:01:03.2]} 28. exf6 {[%clk 0:00:18.7]} 28... Qc6 {[%clk 0:01:03.7]} 29. Rg7+
{[%clk 0:00:18]} 29... Kh8 {[%clk 0:01:01.9]} 30. Ne2 {[%clk 0:00:14.8]} 30...
Qc5 {[%clk 0:01:01.4]} 31. g4 {[%clk 0:00:13.1]} 31... Qxf2+ {[%clk 0:00:58.5]}
32. Kxf2 {[%clk 0:00:12.8]} 32... Bxe4 {[%clk 0:00:58.5]} 33. Rc7 {[%clk
0:00:07.8]} 33... Rxf6+ {[%clk 0:00:57.3]} 34. Ke3 {[%clk 0:00:08.5]} 34... Bd5
{[%clk 0:00:57]} 35. Nd4 {[%clk 0:00:08.2]} 35... e5 {[%clk 0:00:52.5]} 36. Nc2
{[%clk 0:00:07.2]} 36... Rf3+ {[%clk 0:00:51.6]} 37. Kd2 {[%clk 0:00:06.4]}
37... Rxh3 {[%clk 0:00:51]} 38. Rxe5 {[%clk 0:00:06.3]} 38... Rd8 {[%clk
0:00:44.2]} 39. Nd4 {[%clk 0:00:05]} 39... Rh2+ {[%clk 0:00:42.9]} 40. Ke3
{[%clk 0:00:04.4]} 40... Bg8 {[%clk 0:00:19.8]} 41. c4 {[%clk 0:00:04.4]} 41...
Rh3+ {[%clk 0:00:17.9]} 42. Kf4 {[%clk 0:00:05]} 42... Rf8+ {[%clk 0:00:15.2]}
43. Ke4 {[%clk 0:00:05.4]} 43... Rh2 {[%clk 0:00:14.6]} 44. Ree7 {[%clk
0:00:03.9]} 44... Rxb2 {[%clk 0:00:12.8]} 45. c5 {[%clk 0:00:03.3]} 45... bxc5
{[%clk 0:00:11.8]} 46. Rxc5 {[%clk 0:00:04.2]} 46... Rb4 {[%clk 0:00:11.6]} 47.
Rc3 {[%clk 0:00:04.5]} 47... Rd8 {[%clk 0:00:11.2]} 48. Rh3+ {[%clk 0:00:05.2]}
48... Bh7 {[%clk 0:00:10.9]} 49. Rhxh7+ {[%clk 0:00:05.9]} 49... Kg8 {[%clk
0:00:11.8]} 50. Rhg7+ {[%clk 0:00:06.5]} 50... Kf8 {[%clk 0:00:11.7]} 51. Rgf7+
{[%clk 0:00:07.1]} 51... Kg8 {[%clk 0:00:11.9]} 52. Rd7 {[%clk 0:00:07.5]} 52...
Rxd7 {[%clk 0:00:09.4]} 53. Rxd7 {[%clk 0:00:08.4]} 53... a5 {[%clk 0:00:09.8]}
54. Ra7 {[%clk 0:00:09.1]} 54... a4 {[%clk 0:00:10.1]} 55. Ra5 {[%clk
0:00:09.8]} 55... Kg7 {[%clk 0:00:09.6]} 56. Kd5 {[%clk 0:00:10.4]} 56... Kh6
{[%clk 0:00:09.8]} 57. Kc5 {[%clk 0:00:09.7]} 57... Rb1 {[%clk 0:00:09.7]} 58.
Rxa4 {[%clk 0:00:10.6]} 58... Kg5 {[%clk 0:00:09.8]} 59. Ra6 {[%clk 0:00:11.4]}
59... Kxg4 {[%clk 0:00:09.5]} 60. Rxg6+ {[%clk 0:00:12.1]} 60... Kf4 {[%clk
0:00:08.7]} 61. Re6 {[%clk 0:00:12.6]} 61... Rc1+ {[%clk 0:00:08.4]} 62. Kd5
{[%clk 0:00:13.3]} 62... Rd1 {[%clk 0:00:08]} 63. Re4+ {[%clk 0:00:14.2]} 63...
Kg5 {[%clk 0:00:07]} 64. Ke5 {[%clk 0:00:15.1]} 64... Ra1 {[%clk 0:00:05.5]} 65.
Ne6+ {[%clk 0:00:16]} 65... Kg6 {[%clk 0:00:05.2]} 66. Rg4+ {[%clk 0:00:16.7]}
66... Kf7 {[%clk 0:00:05.4]} 67. Kf5 {[%clk 0:00:17]} 67... Ra5+ {[%clk
0:00:04.4]} 68. Ke4 {[%clk 0:00:17.5]} 68... Ra4+ {[%clk 0:00:04.8]} 69. Kf5
{[%clk 0:00:16.6]} 69... Rxg4 {[%clk 0:00:05.2]} 70. Kxg4 {[%clk 0:00:17.5]}
1/2-1/2

[Event "Early-Titled-Tuesday-Blitz-October-10-2023"]
[Site "Chess.com"]
[Date "2023.10.10"]
[Round "6"]
[White "Herzog2012"]
[Black "masnyszachistaaa"]
[Result "1-0"]
[WhiteElo "2506"]
[BlackElo "2579"]
[TimeControl "180+1"]
[EndTime "9:06:01 PDT"]
[Termination "Herzog2012 won on time"]

1. e4 {[%clk 0:03:00.9]} 1... c5 {[%clk 0:02:58.4]} 2. Nf3 {[%clk 0:03:00.5]}
2... e6 {[%clk 0:02:58.9]} 3. d4 {[%clk 0:03:00.1]} 3... cxd4 {[%clk 0:02:59.8]}
4. Nxd4 {[%clk 0:03:00.7]} 4... Nc6 {[%clk 0:03:00.2]} 5. Nc3 {[%clk 0:03:00.6]}
5... Qc7 {[%clk 0:03:00.5]} 6. Be3 {[%clk 0:02:58.8]} 6... a6 {[%clk 0:03:00.7]}
7. Bd3 {[%clk 0:02:56]} 7... Nf6 {[%clk 0:03:00.8]} 8. Qe2 {[%clk 0:02:54]} 8...
Ne5 {[%clk 0:02:48.9]} 9. h3 {[%clk 0:02:39]} 9... Bb4 {[%clk 0:02:45.2]} 10.
Bd2 {[%clk 0:02:26]} 10... O-O {[%clk 0:02:40.4]} 11. O-O {[%clk 0:02:22.5]}
11... Nxd3 {[%clk 0:02:39.4]} 12. cxd3 {[%clk 0:02:22.1]} 12... Qb6 {[%clk
0:02:30.9]} 13. Nb3 {[%clk 0:02:15.2]} 13... Be7 {[%clk 0:02:21.5]} 14. e5
{[%clk 0:02:13.6]} 14... Nd5 {[%clk 0:02:21.7]} 15. Nxd5 {[%clk 0:02:11.8]}
15... exd5 {[%clk 0:02:22.6]} 16. Be3 {[%clk 0:02:10.7]} 16... Qg6 {[%clk
0:02:08.8]} 17. Kh1 {[%clk 0:01:39.5]} 17... d6 {[%clk 0:02:08.7]} 18. exd6
{[%clk 0:01:36.1]} 18... Bxd6 {[%clk 0:02:09.6]} 19. Bc5 {[%clk 0:01:34.8]}
19... Bf5 {[%clk 0:02:02.7]} 20. Bxd6 {[%clk 0:01:34.4]} 20... Bxd3 {[%clk
0:01:30.2]} 21. Qe5 {[%clk 0:01:23.9]} 21... Rfe8 {[%clk 0:01:21.2]} 22. Qg3
{[%clk 0:01:18.2]} 22... Bxf1 {[%clk 0:01:20.1]} 23. Qxg6 {[%clk 0:01:14.1]}
23... hxg6 {[%clk 0:01:18]} 24. Rxf1 {[%clk 0:01:13.6]} 24... Rad8 {[%clk
0:01:17.1]} 25. Bc5 {[%clk 0:01:08.6]} 25... Re2 {[%clk 0:01:12]} 26. Bd4 {[%clk
0:01:08.1]} 26... Rde8 {[%clk 0:01:08.6]} 27. Bc3 {[%clk 0:01:05.4]} 27... f6
{[%clk 0:01:07.8]} 28. Nd4 {[%clk 0:01:04.6]} 28... R2e4 {[%clk 0:01:07.8]} 29.
f3 {[%clk 0:00:56.7]} 29... Re3 {[%clk 0:01:05.6]} 30. Kg1 {[%clk 0:00:56.2]}
30... Kf7 {[%clk 0:01:04.7]} 31. Kf2 {[%clk 0:00:55.3]} 31... b5 {[%clk
0:00:55.7]} 32. a3 {[%clk 0:00:53.1]} 32... Rd3 {[%clk 0:00:53.1]} 33. Re1
{[%clk 0:00:39]} 33... Rxe1 {[%clk 0:00:52.1]} 34. Kxe1 {[%clk 0:00:38.5]} 34...
Re3+ {[%clk 0:00:52.2]} 35. Kd2 {[%clk 0:00:35.9]} 35... Re8 {[%clk 0:00:51.3]}
36. Nc6 {[%clk 0:00:28.8]} 36... Ke6 {[%clk 0:00:47.9]} 37. Nb4 {[%clk
0:00:28.9]} 37... Ra8 {[%clk 0:00:41.3]} 38. Nd3 {[%clk 0:00:23.7]} 38... g5
{[%clk 0:00:37.7]} 39. Ke3 {[%clk 0:00:18.8]} 39... Rc8 {[%clk 0:00:36]} 40. Nb4
{[%clk 0:00:13.5]} 40... a5 {[%clk 0:00:35.2]} 41. Nc2 {[%clk 0:00:08.7]} 41...
Kd6 {[%clk 0:00:13.4]} 42. Nd4 {[%clk 0:00:06.5]} 42... a4 {[%clk 0:00:13.3]}
43. Nxb5+ {[%clk 0:00:05.9]} 43... Kc5 {[%clk 0:00:13.4]} 44. Nd4 {[%clk
0:00:05.2]} 44... Kc4 {[%clk 0:00:13.6]} 45. Nf5 {[%clk 0:00:05.2]} 45... Rc7
{[%clk 0:00:10]} 46. Kd2 {[%clk 0:00:04.6]} 46... Rd7 {[%clk 0:00:09.4]} 47.
Ne3+ {[%clk 0:00:04]} 47... Kb3 {[%clk 0:00:08.9]} 48. Bd4 {[%clk 0:00:04.1]}
48... Rd8 {[%clk 0:00:07.8]} 49. Kd3 {[%clk 0:00:03.1]} 49... Rd7 {[%clk
0:00:07.4]} 50. Nc2 {[%clk 0:00:03.4]} 50... Rc7 {[%clk 0:00:05.6]} 51. Nb4
{[%clk 0:00:02.9]} 51... Rd7 {[%clk 0:00:06.2]} 52. Na6 {[%clk 0:00:03.1]} 52...
Ka2 {[%clk 0:00:03.6]} 53. Nc5 {[%clk 0:00:03.8]} 53... Ra7 {[%clk 0:00:03.6]}
54. Ne6 {[%clk 0:00:03.2]} 54... Ra6 {[%clk 0:00:02.8]} 55. Nc5 {[%clk
0:00:02.7]} 55... Ra8 {[%clk 0:00:02.3]} 56. Kc3 {[%clk 0:00:03.2]} 56... Rc8
{[%clk 0:00:01.9]} 57. Kb4 {[%clk 0:00:03.2]} 57... Rb8+ {[%clk 0:00:02.3]} 58.
Kxa4 {[%clk 0:00:03.1]} 58... Re8 {[%clk 0:00:02.7]} 59. b4 {[%clk 0:00:02.6]}
59... Re2 {[%clk 0:00:02.2]} 60. b5 {[%clk 0:00:02.9]} 60... Rd2 {[%clk
0:00:01.6]} 61. Bc3 {[%clk 0:00:02.1]} 61... Rc2 {[%clk 0:00:02]} 62. Bb4 {[%clk
0:00:02.5]} 62... d4 {[%clk 0:00:01.5]} 63. b6 {[%clk 0:00:02.9]} 1-0

[Event "Early-Titled-Tuesday-Blitz-October-10-2023"]
[Site "Chess.com"]
[Date "2023.10.10"]
[Round "6"]
[White "MightyGMpretender"]
[Black "SirStrateg"]
[Result "1/2-1/2"]
[WhiteElo "2743"]
[BlackElo "2588"]
[TimeControl "180+1"]
[EndTime "9:06:04 PDT"]
[Termination "Game drawn - insufficient material"]

1. e4 {[%clk 0:03:00.9]} 1... d6 {[%clk 0:02:59.6]} 2. d4 {[%clk 0:02:57.9]}
2... Nf6 {[%clk 0:03:00.1]} 3. f3 {[%clk 0:02:58.7]} 3... Nbd7 {[%clk
0:02:54.4]} 4. c4 {[%clk 0:02:56.8]} 4... e5 {[%clk 0:02:52.8]} 5. d5 {[%clk
0:02:57.2]} 5... Be7 {[%clk 0:02:51.2]} 6. Be3 {[%clk 0:02:57.4]} 6... c6 {[%clk
0:02:49.9]} 7. Nc3 {[%clk 0:02:56.8]} 7... cxd5 {[%clk 0:02:49.8]} 8. cxd5
{[%clk 0:02:56.2]} 8... O-O {[%clk 0:02:47.8]} 9. Bd3 {[%clk 0:02:53.2]} 9... a6
{[%clk 0:02:46.8]} 10. Nge2 {[%clk 0:02:46.4]} 10... Ne8 {[%clk 0:02:37.6]} 11.
O-O {[%clk 0:02:44.8]} 11... Bg5 {[%clk 0:02:36.5]} 12. Bf2 {[%clk 0:02:45.5]}
12... g6 {[%clk 0:02:31.3]} 13. b4 {[%clk 0:02:33.7]} 13... Ng7 {[%clk
0:02:30.3]} 14. a4 {[%clk 0:02:30.9]} 14... f5 {[%clk 0:02:30.2]} 15. a5 {[%clk
0:02:30.9]} 15... fxe4 {[%clk 0:02:22.3]} 16. fxe4 {[%clk 0:02:23.1]} 16... Nf6
{[%clk 0:02:15.7]} 17. h3 {[%clk 0:02:16.2]} 17... Bd7 {[%clk 0:01:59.7]} 18.
Bb6 {[%clk 0:02:03.3]} 18... Qe8 {[%clk 0:01:55.6]} 19. Ng3 {[%clk 0:01:59.9]}
19... Ngh5 {[%clk 0:01:50.4]} 20. Nxh5 {[%clk 0:01:59.5]} 20... Nxh5 {[%clk
0:01:48.4]} 21. Rxf8+ {[%clk 0:01:55.5]} 21... Qxf8 {[%clk 0:01:46.3]} 22. Bf1
{[%clk 0:01:52.1]} 22... Rc8 {[%clk 0:01:43.6]} 23. Ra3 {[%clk 0:01:50.2]} 23...
Qh6 {[%clk 0:01:36.9]} 24. Ne2 {[%clk 0:01:47.5]} 24... Bb5 {[%clk 0:01:31.6]}
25. Rf3 {[%clk 0:01:36.3]} 25... Bxe2 {[%clk 0:01:26.3]} 26. Qxe2 {[%clk
0:01:35.6]} 26... Bf4 {[%clk 0:01:19.1]} 27. Bf2 {[%clk 0:01:19.8]} 27... Qg5
{[%clk 0:01:12.9]} 28. Qd3 {[%clk 0:01:15.9]} 28... Rc1 {[%clk 0:01:09.9]} 29.
g3 {[%clk 0:01:11.8]} 29... Bd2 {[%clk 0:01:00.1]} 30. b5 {[%clk 0:01:04.3]}
30... Bxa5 {[%clk 0:00:53.1]} 31. bxa6 {[%clk 0:01:03.5]} 31... bxa6 {[%clk
0:00:53.4]} 32. Qxa6 {[%clk 0:01:01.5]} 32... Qd8 {[%clk 0:00:52.3]} 33. Kg2
{[%clk 0:00:58.2]} 33... Rc2 {[%clk 0:00:46.3]} 34. Bd3 {[%clk 0:00:44.2]} 34...
Rb2 {[%clk 0:00:36.8]} 35. Kg1 {[%clk 0:00:28.3]} 35... Nf6 {[%clk 0:00:34.2]}
36. Qa7 {[%clk 0:00:24.3]} 36... Bc3 {[%clk 0:00:15.8]} 37. Qa4 {[%clk
0:00:15.9]} 37... Kg7 {[%clk 0:00:13]} 38. Qd1 {[%clk 0:00:13.2]} 38... Qb8
{[%clk 0:00:11.2]} 39. Bf1 {[%clk 0:00:11.7]} 39... Rxf2 {[%clk 0:00:11]} 40.
Kxf2 {[%clk 0:00:10.2]} 40... Nxe4+ {[%clk 0:00:11.5]} 41. Kg2 {[%clk
0:00:10.8]} 41... Qb2+ {[%clk 0:00:10.6]} 42. Qe2 {[%clk 0:00:10.1]} 42... Qb4
{[%clk 0:00:10.4]} 43. Re3 {[%clk 0:00:07.4]} 43... Nf6 {[%clk 0:00:10.5]} 44.
Qf3 {[%clk 0:00:07.9]} 44... Bd4 {[%clk 0:00:10.7]} 45. Re2 {[%clk 0:00:08.3]}
45... Qb7 {[%clk 0:00:10.2]} 46. g4 {[%clk 0:00:08.4]} 46... Qxd5 {[%clk
0:00:10.5]} 47. Qxd5 {[%clk 0:00:08.5]} 47... Nxd5 {[%clk 0:00:10.8]} 48. Kf3
{[%clk 0:00:09.2]} 48... Nf6 {[%clk 0:00:10.4]} 49. Rc2 {[%clk 0:00:09.5]} 49...
d5 {[%clk 0:00:10.3]} 50. Rc7+ {[%clk 0:00:10.1]} 50... Kh6 {[%clk 0:00:10.6]}
51. h4 {[%clk 0:00:10.8]} 51... g5 {[%clk 0:00:11.1]} 52. Rf7 {[%clk 0:00:09.4]}
52... Kg6 {[%clk 0:00:10.9]} 53. Re7 {[%clk 0:00:09.4]} 53... gxh4 {[%clk
0:00:11.2]} 54. Kg2 {[%clk 0:00:09.8]} 54... Nxg4 {[%clk 0:00:10]} 55. Kh3
{[%clk 0:00:10]} 55... Ne3 {[%clk 0:00:08.6]} 56. Bd3+ {[%clk 0:00:10.3]} 56...
e4 {[%clk 0:00:08.7]} 57. Bb1 {[%clk 0:00:10.3]} 57... Bf6 {[%clk 0:00:08.1]}
58. Rd7 {[%clk 0:00:10.2]} 58... Kf5 {[%clk 0:00:08.2]} 59. Rxh7 {[%clk
0:00:09.7]} 59... d4 {[%clk 0:00:07]} 60. Rh5+ {[%clk 0:00:10]} 60... Bg5 {[%clk
0:00:06.9]} 61. Bxe4+ {[%clk 0:00:10.1]} 61... Kxe4 {[%clk 0:00:07.2]} 62. Rxg5
{[%clk 0:00:10.7]} 62... Nf5 {[%clk 0:00:07.1]} 63. Rg4+ {[%clk 0:00:10.3]}
63... Kf3 {[%clk 0:00:07.7]} 64. Rg5 {[%clk 0:00:10.5]} 64... Kf4 {[%clk
0:00:07.9]} 65. Rg4+ {[%clk 0:00:11.1]} 65... Ke3 {[%clk 0:00:06.9]} 66. Rg5
{[%clk 0:00:10.9]} 66... Nd6 {[%clk 0:00:07.3]} 67. Rd5 {[%clk 0:00:11]} 67...
Ne4 {[%clk 0:00:06.3]} 68. Re5 {[%clk 0:00:11.5]} 68... d3 {[%clk 0:00:06.5]}
69. Rd5 {[%clk 0:00:11.1]} 69... Nc3 {[%clk 0:00:05]} 70. Rd8 {[%clk 0:00:10.8]}
70... d2 {[%clk 0:00:05]} 71. Kxh4 {[%clk 0:00:11.2]} 71... Ne2 {[%clk
0:00:05.5]} 72. Rxd2 {[%clk 0:00:11.3]} 72... Kxd2 {[%clk 0:00:06]} 1/2-1/2

[Event "Early-Titled-Tuesday-Blitz-October-10-2023"]
[Site "Chess.com"]
[Date "2023.10.10"]
[Round "6"]
[White "BardArtem"]
[Black "mr_gustavo"]
[Result "1/2-1/2"]
[WhiteElo "2833"]
[BlackElo "2646"]
[TimeControl "180+1"]
[EndTime "9:06:06 PDT"]
[Termination "Game drawn by stalemate"]

1. e4 {[%clk 0:03:00.9]} 1... c6 {[%clk 0:02:58.5]} 2. Nc3 {[%clk 0:02:59.3]}
2... d5 {[%clk 0:02:58.6]} 3. Qe2 {[%clk 0:02:59.8]} 3... d4 {[%clk 0:02:53.1]}
4. Nd1 {[%clk 0:02:59.7]} 4... c5 {[%clk 0:02:51]} 5. d3 {[%clk 0:02:55.1]} 5...
Nc6 {[%clk 0:02:50.5]} 6. g3 {[%clk 0:02:55.2]} 6... e5 {[%clk 0:02:49.9]} 7.
Bg2 {[%clk 0:02:52.4]} 7... h5 {[%clk 0:02:49.3]} 8. f4 {[%clk 0:02:43.9]} 8...
h4 {[%clk 0:02:48.5]} 9. Nf3 {[%clk 0:02:43.5]} 9... h3 {[%clk 0:02:48]} 10. Bf1
{[%clk 0:02:43.7]} 10... Nf6 {[%clk 0:02:45.1]} 11. Nf2 {[%clk 0:02:32.9]} 11...
Ng4 {[%clk 0:02:42.7]} 12. f5 {[%clk 0:02:29.1]} 12... Nxf2 {[%clk 0:02:25.2]}
13. Qxf2 {[%clk 0:02:30]} 13... b6 {[%clk 0:01:53.1]} 14. g4 {[%clk 0:02:20]}
14... Bb7 {[%clk 0:01:49.5]} 15. Bd2 {[%clk 0:02:10.1]} 15... c4 {[%clk
0:01:45.9]} 16. dxc4 {[%clk 0:01:55.8]} 16... Nb4 {[%clk 0:01:44.6]} 17. Bd3
{[%clk 0:01:52.1]} 17... Qc7 {[%clk 0:01:31.1]} 18. a3 {[%clk 0:01:43.1]} 18...
Na6 {[%clk 0:01:21.1]} 19. b4 {[%clk 0:01:41.8]} 19... Nb8 {[%clk 0:01:20.5]}
20. O-O {[%clk 0:01:32.1]} 20... Nd7 {[%clk 0:01:19.9]} 21. c3 {[%clk
0:01:20.6]} 21... O-O-O {[%clk 0:01:12.7]} 22. cxd4 {[%clk 0:00:54]} 22... exd4
{[%clk 0:01:09.9]} 23. Nxd4 {[%clk 0:00:50.7]} 23... Ne5 {[%clk 0:01:03]} 24.
Be2 {[%clk 0:00:44.5]} 24... Bxe4 {[%clk 0:00:48.3]} 25. Bf4 {[%clk 0:00:33]}
25... Ba8 {[%clk 0:00:22.4]} 26. Rad1 {[%clk 0:00:18.8]} 26... Qb7 {[%clk
0:00:21.8]} 27. Nf3 {[%clk 0:00:14.3]} 27... Rxd1 {[%clk 0:00:14.8]} 28. Bxd1
{[%clk 0:00:13.3]} 28... Nxg4 {[%clk 0:00:10.9]} 29. Qg3 {[%clk 0:00:13.2]}
29... Nf6 {[%clk 0:00:11.5]} 30. Re1 {[%clk 0:00:06.6]} 30... Nh5 {[%clk
0:00:10.9]} 31. Qg4 {[%clk 0:00:05.1]} 31... Nxf4 {[%clk 0:00:07.6]} 32. Qxf4
{[%clk 0:00:04.4]} 32... Be7 {[%clk 0:00:05.7]} 33. f6 {[%clk 0:00:03.6]} 33...
Bxf6 {[%clk 0:00:05.5]} 34. Qf5+ {[%clk 0:00:03.1]} 34... Qd7 {[%clk 0:00:05.8]}
35. Qxd7+ {[%clk 0:00:02.9]} 35... Kxd7 {[%clk 0:00:06.7]} 36. Ne5+ {[%clk
0:00:01.4]} 36... Bxe5 {[%clk 0:00:06.4]} 37. Rxe5 {[%clk 0:00:02.3]} 37... f6
{[%clk 0:00:07.2]} 38. Re1 {[%clk 0:00:02.2]} 38... Rh4 {[%clk 0:00:07.7]} 39.
Ba4+ {[%clk 0:00:01.8]} 39... Kd6 {[%clk 0:00:07.2]} 40. Rd1+ {[%clk 0:00:02.4]}
40... Ke5 {[%clk 0:00:06.9]} 41. Bb3 {[%clk 0:00:01.3]} 41... Rd4 {[%clk
0:00:06.6]} 42. Re1+ {[%clk 0:00:01.5]} 42... Kf4 {[%clk 0:00:06.8]} 43. c5
{[%clk 0:00:01.8]} 43... bxc5 {[%clk 0:00:06.6]} 44. bxc5 {[%clk 0:00:02.7]}
44... Rd3 {[%clk 0:00:07]} 45. Bd1 {[%clk 0:00:01.7]} 45... Rxa3 {[%clk
0:00:07]} 46. Be2 {[%clk 0:00:01.7]} 46... Rc3 {[%clk 0:00:06.4]} 47. Rf1+
{[%clk 0:00:01.8]} 47... Kg5 {[%clk 0:00:06.3]} 48. Ra1 {[%clk 0:00:01.4]} 48...
Rxc5 {[%clk 0:00:05.8]} 49. Rxa7 {[%clk 0:00:01.8]} 49... Be4 {[%clk 0:00:06.1]}
50. Rxg7+ {[%clk 0:00:02.3]} 50... Kf4 {[%clk 0:00:06.2]} 51. Bf1 {[%clk
0:00:02]} 51... f5 {[%clk 0:00:05.6]} 52. Bxh3 {[%clk 0:00:01.9]} 52... Rc1+
{[%clk 0:00:05]} 53. Kf2 {[%clk 0:00:02.6]} 53... Rc2+ {[%clk 0:00:05.5]} 54.
Kg1 {[%clk 0:00:03.3]} 54... Ke3 {[%clk 0:00:05.9]} 55. Rg3+ {[%clk 0:00:02.3]}
55... Kd4 {[%clk 0:00:05.8]} 56. Bf1 {[%clk 0:00:02.6]} 56... f4 {[%clk
0:00:05.9]} 57. Rg8 {[%clk 0:00:03.3]} 57... f3 {[%clk 0:00:05.5]} 58. h4 {[%clk
0:00:03.9]} 58... Ke3 {[%clk 0:00:04.3]} 59. h5 {[%clk 0:00:03.3]} 59... Rc1
{[%clk 0:00:04.5]} 60. Re8 {[%clk 0:00:02.9]} 60... f2+ {[%clk 0:00:03.9]} 61.
Kh2 {[%clk 0:00:03.5]} 61... Rxf1 {[%clk 0:00:04.5]} 62. Rf8 {[%clk 0:00:01.8]}
62... Rh1+ {[%clk 0:00:04.5]} 63. Kg3 {[%clk 0:00:02.7]} 63... Rg1+ {[%clk
0:00:04.6]} 64. Kh4 {[%clk 0:00:02.8]} 64... f1=Q {[%clk 0:00:04.8]} 65. Rxf1
{[%clk 0:00:03.7]} 65... Rxf1 {[%clk 0:00:05.5]} 66. h6 {[%clk 0:00:04.3]} 66...
Rh1+ {[%clk 0:00:06.3]} 67. Kg5 {[%clk 0:00:04.9]} 67... Rg1+ {[%clk 0:00:06.9]}
68. Kf6 {[%clk 0:00:02.2]} 68... Rg6+ {[%clk 0:00:05.6]} 69. Ke5 {[%clk
0:00:02.4]} 69... Rxh6 {[%clk 0:00:06.5]} 1/2-1/2